{"text_format":"3","workbook":"xlsx","n_sheets":1,"sheets":["Протокол ШЭ ВОШ по предмету"],"not_rendered":{"defined_names":1},"read":"whole","date_system":"1900"}

{"sheet":"Протокол ШЭ ВОШ по предмету","index":0,"n_rows":40,"n_cols":17,"rows_kept":40}
["№","Код ОО","Наименование ОО","Фамилия","Имя","Пол","Участник с ОВЗ (да/нет)","Класс обучения","Класс участия","Балл","Добавлено баллов по итогам апелляций","Итоговый балл","Максимальный балл","Статус","Призёр республиканского этапа прошлого года","ФИО учителя","Место работы учителя"]
[1,340008,"Муниципальное бюджетное общеобразовательное учреждение \"Габишевская средняя общеобразовательная школа имени Махмута Ахметовича Гареева\" Лаишевского муниципального района Республики Татарстан","Алеева","Азалия","Ж","нет",7,7,71,null,null,100,null,"нет","Шабаев Валерий Владиславович","Муниципальное бюджетное общеобразовательное учреждение \"Габишевская средняя общеобразовательная школа имени Махмута Ахметовича Гареева\" Лаишевского муниципального района Республики Татарстан"]
[2,340015,"Муниципальное бюджетное общеобразовательное учреждение \"Нармонская средняя общеобразовательная школа\" Лаишевского муниципального района","Сидакова","Ульяна \n","Ж",{"$f":"$G$2","v":"нет"},7,7,51,null,null,100,null,"нет","Хасанов Ильнар Хусаинович\r\n","Муниципальное бюджетное общеобразовательное учреждение \"Нармонская средняя общеобразовательная школа\" Лаишевского муниципального района"]
[3,340009,"Мууниципальное бюджетное общеобразовательное учреждение Державинская основная общеобразовательная школа Лаишевского муниципального района Республики Татарстан","Кулакова ","Дарья","Ж",{"$f":"$G$3","v":"нет"},7,7,84,null,null,100,null,"нет","Валиуллин Ринат Гарифуллович","Мууниципальное бюджетное общеобразовательное учреждение Державинская основная общеобразовательная школа Лаишевского муниципального района Республики Татарстан"]
[4,340019,{"$f":"$Q$5","v":"Муниципальное бюджетное общеобразовательное учреждение  \nПесчано-Ковалинская средняя общеобразовательная школа Лаишевского муниципального района Республики  \nТатарстан"},"Сабитова ","Софья","Ж",{"$f":"$G$4","v":"нет"},{"$f":"H4","v":7},7,59,null,null,{"$f":"M2","v":100},null,{"$f":"$O$4","v":"нет"},"Иванов Кирилл Михайлович","Муниципальное бюджетное общеобразовательное учреждение  \nПесчано-Ковалинская средняя общеобразовательная школа Лаишевского муниципального района Республики  \nТатарстан"]
[5,340023,"Муниципальное бюджетное общеобразовательное учреждение \"Сокуровская средняя общеобразовательная школа имени Г.Р.Державина\" Лаишевского муниципального района РТ","Набиулина ","Роксана","Ж",{"$f":"G5","v":"нет"},7,7,81,null,null,100,null,{"$f":"$O$5","v":"нет"},"Шишкин Анатолий Юрьевич ","Муниципальное бюджетное общеобразовательное учреждение \"Сокуровская средняя общеобразовательная школа имени Г.Р.Державина\" Лаишевского муниципального района РТ"]
[6,340028,"Муниципальное бюджетное общеобразовательное учреждение \"Многопрофильный лицей \"Здоровое поколение\" Лаишевский район Республики Татарстан","Жукова","Ева","Ж",{"$f":"G6","v":"нет"},7,7,95,null,null,100,null,"нет","Хидиятуллин Расим Фанисович","Муниципальное бюджетное общеобразовательное учреждение \"Многопрофильный лицей \"Здоровое поколение\" Лаишевский район Республики Татарстан"]
[7,340019,"Муниципальное бюджетное общеобразовательное учреждение  \nПесчано-Ковалинская средняя общеобразовательная школа Лаишевского муниципального района Республики  \nТатарстан","Монш","Александр","М","нет",7,7,55,null,null,100,null,"нет","Иванов Кирилл Михайлович","Муниципальное бюджетное общеобразовательное учреждение  \nПесчано-Ковалинская средняя общеобразовательная школа Лаишевского муниципального района Республики  \nТатарстан"]
[8,340016,"Муниципальное бюджетное общеобразовательное учреждение средняя общеобразовательная школа поселка имени 25 октября ","Титов ","Кирилл","М","нет",7,7,57,null,null,100,null,"нет","  Суханов Евгений Геннадьевич","Муниципальное бюджетное общеобразовательное учреждение средняя общеобразовательная школа поселка имени 25 октября "]
[9,340014,"Муниципальное бюджетное общеобразовательное учреждение \"Никольская редняя общеобразовательная школа\" Лаишевский район Республики Татарстан","Ляшин","Александр","М","нет",6,7,50,null,null,100,null,"нет","Волков Сергей Николаевич","Муниципальное бюджетное общеобразовательное учреждение \"Никольская редняя общеобразовательная школа\" Лаишевский район Республики Татарстан"]
[10,{"$f":"$B$10","v":340014},{"$f":"$Q$10","v":"Муниципальное бюджетное общеобразовательное учреждение \"Никольская редняя общеобразовательная школа\" Лаишевский район Республики Татарстан"},"Глушков","Артур","М","нет",7,7,60,null,null,100,null,"нет","Волков Сергей Николаевич",{"$f":"$Q$10","v":"Муниципальное бюджетное общеобразовательное учреждение \"Никольская редняя общеобразовательная школа\" Лаишевский район Республики Татарстан"}]
[11,340002,"МБОУ Лаишевская СОШ №2 им.Героя Советского Союза Б.К.Кузнецова","Перепилицын","Станислав","М","нет",7,7,73,null,null,100,null,"нет","Прахова Диана Юрьевна","МБОУ Лаишевская СОШ №2 им.Героя Советского Союза Б.К.Кузнецова"]
[12,340020,"Муниципальное бюджетное образовательное учреждение \"Рождественская СОШ\"","Панаева","Татьяна","Ж","нет",8,8,64,null,null,100,null,"нет","Корнеев Алексей Борисович","Муниципальное бюджетное образовательное учреждение \"Рождественская СОШ\""]
[13,340014,"Муниципальное бюджетное общеобразовательное учреждение \"Никольская редняя общеобразовательная школа\" Лаишевский район Республики Татарстан","Иванова","Дарья","Ж","нет",8,8,56,null,null,100,null,"нет","Волков Сергей Николаевич","Муниципальное бюджетное общеобразовательное учреждение \"Никольская редняя общеобразовательная школа\" Лаишевский район Республики Татарстан"]
[14,340021,"Муниципальное бюджетное образовательное учреждение \"Столбищенская СОШ имени А.П.Малышева\"","Андреева","Инесса","Ж","нет",8,8,72,null,null,100,null,"нет","Тазетдинов Завдят Шайхутдинович","Муниципальное бюджетное образовательное учреждение \"Столбищенская СОШ имени А.П.Малышева\""]
[15,340008,"Муниципальное бюджетное общеобразовательное учреждение \"Габишевская средняя общеобразовательная школа имени Махмута Ахметовича Гареева\" Лаишевского муниципального района Республики Татарстан","Шабалин","Эмиль","М","нет",8,8,71,null,null,100,null,"нет","Козлова Наталья Викторовна","Муниципальное бюджетное общеобразовательное учреждение \"Габишевская средняя общеобразовательная школа имени Махмута Ахметовича Гареева\" Лаишевского муниципального района Республики Татарстан"]
[16,{"$f":"$B$16","v":340008},{"$f":"$Q$16","v":"Муниципальное бюджетное общеобразовательное учреждение \"Габишевская средняя общеобразовательная школа имени Махмута Ахметовича Гареева\" Лаишевского муниципального района Республики Татарстан"},"Сейдахметов","Данис","М","нет",8,8,66,null,null,100,null,"нет",{"$f":"$P$16","v":"Козлова Наталья Викторовна"},{"$f":"$Q$16","v":"Муниципальное бюджетное общеобразовательное учреждение \"Габишевская средняя общеобразовательная школа имени Махмута Ахметовича Гареева\" Лаишевского муниципального района Республики Татарстан"}]
[17,340015,"Муниципальное бюджетное общеобразовательное учреждение \"Нармонская средняя общеобразовательная школа\" Лаишевского муниципального района","  Абдуллин \r\n","  Амир \r\n","М","нет",8,8,64,null,null,100,null,"нет"," Галиакберов Раниль Шамилевич","Муниципальное бюджетное общеобразовательное учреждение \"Нармонская средняя общеобразовательная школа\" Лаишевского муниципального района"]
[18,340023,"Муниципальное бюджетное общеобразовательное учреждение \"Сокуровская средняя общеобразовательная школа имени Г.Р.Державина\" Лаишевского муниципального района РТ","Торгаев ","Данил ","М","нет",8,8,78,null,null,100,null,"нет","Хусаенов Искандер Ильхамович ","Муниципальное бюджетное общеобразовательное учреждение \"Сокуровская средняя общеобразовательная школа имени Г.Р.Державина\" Лаишевского муниципального района РТ"]
[19,340021,"Муниципальное бюджетное образовательное учреждение \"Столбищенская СОШ имени А.П.Малышева\"","Фролов","Роман","М","нет",6,8,95,null,null,100,null,"нет","Тазетдинов Завдят Шайхутдинович","Муниципальное бюджетное образовательное учреждение \"Столбищенская СОШ имени А.П.Малышева\""]
[20,340028,"Муниципальное бюджетное общеобразовательное учреждение \"Многопрофильный лицей \"Здоровое поколение\" Лаишевский район Республики Татарстан","Ибатуллин","Джамал","М","нет",8,8,79,null,null,100,null,"нет","Хидиятуллин Расим Фанисович","Муниципальное бюджетное общеобразовательное учреждение \"Многопрофильный лицей \"Здоровое поколение\" Лаишевский район Республики Татарстан"]
[21,{"$f":"$B$21","v":340028},{"$f":"$Q$21","v":"Муниципальное бюджетное общеобразовательное учреждение \"Многопрофильный лицей \"Здоровое поколение\" Лаишевский район Республики Татарстан"},"Кораблин","Анатолий","М","нет",8,8,69,null,null,100,null,"нет","Хидиятуллин Расим Фанисович",{"$f":"$Q$21","v":"Муниципальное бюджетное общеобразовательное учреждение \"Многопрофильный лицей \"Здоровое поколение\" Лаишевский район Республики Татарстан"}]
[22,340002,"МБОУ Лаишевская СОШ №2 им.Героя Советского Союза Б.К.Кузнецова","Зиятдинов","Амаль","М","нет",8,8,62,null,null,100,null,"нет","Прахова Диана Юрьевна","МБОУ Лаишевская СОШ №2 им.Героя Советского Союза Б.К.Кузнецова"]
[23,340008,"Муниципальное бюджетное общеобразовательное учреждение \"Габишевская средняя общеобразовательная школа имени Махмута Ахметовича Гареева\" Лаишевского муниципального района Республики Татарстан","Алеева","Марьям","Ж","нет",9,9,77,null,null,100,null,"нет","Козлова Наталья Викторовна","Муниципальное бюджетное общеобразовательное учреждение \"Габишевская средняя общеобразовательная школа имени Махмута Ахметовича Гареева\" Лаишевского муниципального района Республики Татарстан"]
[24,340016,"МБОУ \"СОШ пос.им 25 Октября \"","Нигматуллина ","Гульназ","Ж","нет",9,9,79,null,null,100,null,"нет","Суханов Евгений Геннадьевич ","МБОУ \"СОШ пос.им 25 Октября \""]
[25,340023,"Муниципальное бюджетное общеобразовательное учреждение \"Сокуровская средняя общеобразовательная школа имени Г.Р.Державина\" Лаишевского муниципального района РТ","Русланова","Эльвина","Ж","нет",9,9,85,null,null,100,null,"нет","Абдурашитова Земфира Мустафаевна ","Муниципальное бюджетное общеобразовательное учреждение \"Сокуровская средняя общеобразовательная школа имени Г.Р.Державина\" Лаишевского муниципального района РТ"]
[26,340022,"Муниципальное бюджетное общеобразовательное учреждение Среднедевятовская средняя общеобразовательная школа Лаишевского района РТ","Ахметзянова","Илина","Ж","нет",9,9,75,null,null,100,null,"нет","Халиуллин Айдар Махмутович","Муниципальное бюджетное общеобразовательное учреждение Среднедевятовская средняя общеобразовательная школа Лаишевского района РТ"]
[27,340021,{"$f":"$Q$28","v":"Муниципальное бюджетное образовательное учреждение \"Столбищенская СОШ имени А.П.Малышева\""},"Хусаинова","Диляра","Ж","нет",9,9,97,null,null,100,null,"нет","Косов Игорь Сергеевич","Муниципальное бюджетное образовательное учреждение \"Столбищенская СОШ имени А.П.Малышева\""]
[28,340028,"Муниципальное бюджетное общеобразовательное учреждение \"Многопрофильный лицей \"Здоровое поколение\" Лаишевский район Республики Татарстан","Трошина","Дана","Ж","нет",9,9,98,null,null,100,null,"да","Трошин Владимир Леонидович","Муниципальное бюджетное общеобразовательное учреждение \"Многопрофильный лицей \"Здоровое поколение\" Лаишевский район Республики Татарстан"]
[29,340016,"МБОУ \"СОШ пос.Им 25 Октября \"","Суханов ","Михаил ","М","нет",9,9,69,null,null,100,null,"нет","Суханов Евгений Геннадьевич ","МБОУ \"СОШ пос.Им 25 Октября \""]
[30,340023,"Муниципальное бюджетное общеобразовательное учреждение \"Сокуровская средняя общеобразовательная школа имени Г.Р.Державина\" Лаишевского муниципального района РТ","Сангинов","Шукрулло","М","нет",9,9,81,null,null,100,null,"нет","Абдурашитова Земфира Мустафаевна ","Муниципальное бюджетное общеобразовательное учреждение \"Сокуровская средняя общеобразовательная школа имени Г.Р.Державина\" Лаишевского муниципального района РТ"]
[31,340028,"Муниципальное бюджетное общеобразовательное учреждение \"Многопрофильный лицей \"Здоровое поколение\" Лаишевский район Республики Татарстан","Гумеров","Амин","М","нет",9,9,74,null,null,100,null,"нет","Трошин Владимир Леонидович","Муниципальное бюджетное общеобразовательное учреждение \"Многопрофильный лицей \"Здоровое поколение\" Лаишевский район Республики Татарстан"]
[32,340001,"Муниципальное бюджетное общеобразовательное учреждение  \n\"Гимназия №1 г. Лаишево\" Лаишевского муниципального района Республики  \nТатарстан","Салова","Арина","Ж","нет",10,10,63,null,null,100,null,"нет","Козин Сергей Петрович\r\n","Муниципальное бюджетное общеобразовательное учреждение  \n\"Гимназия №1 г. Лаишево\" Лаишевского муниципального района Республики  \nТатарстан"]
[33,340015,"Муниципальное бюджетное общеобразовательное учреждение \"Нармонская средняя общеобразовательная школа\" Лаишевского муниципального района","Гаязов \r\n","Айдын \r\n","М","нет",10,10,74,null,null,100,null,"нет","Хасанов Ильнар Хусаинович\n","Муниципальное бюджетное общеобразовательное учреждение \"Нармонская средняя общеобразовательная школа\" Лаишевского муниципального района"]
[34,340018,"Муниципальное бюджетное общеобразовательное учреждение  \nПесчано-Ковалинская средняя общеобразовательная школа Лаишевского муниципального района Республики  \nТатарстан","Жаров","Владислав","М","нет",10,10,46,null,null,100,null,"нет","Иванов Кирилл Михайлович","Муниципальное бюджетное общеобразовательное учреждение  \nПесчано-Ковалинская средняя общеобразовательная школа Лаишевского муниципального района Республики  \nТатарстан"]
[35,340021,"Муниципальное бюджетное образовательное учреждение \"Столбищенская СОШ имени А.П.Малышева\"","Гайнутдинов","Алмаз","М","нет",10,10,77,null,null,100,null,"нет","Тазетдинов Завдят Шайхутдинович","Муниципальное бюджетное образовательное учреждение \"Столбищенская СОШ имени А.П.Малышева\""]
[36,340015,"Муниципальное бюджетное общеобразовательное учреждение \"Нармонская средняя общеобразовательная школа\" Лаишевского муниципального района","Хасанова","Диана","Ж","нет",11,11,79,null,null,100,null,"нет","Хасанов Ильнар Хусаинович","Муниципальное бюджетное общеобразовательное учреждение \"Нармонская средняя общеобразовательная школа\" Лаишевского муниципального района"]
[37,340021,"Муниципальное бюджетное образовательное учреждение \"Столбищенская СОШ имени А.П.Малышева\"","Зиновьева","Юлия","Ж","нет",11,11,82,null,null,100,null,"нет","Тазединов Завдят Шайхутдинович","Муниципальное бюджетное образовательное учреждение \"Столбищенская СОШ имени А.П.Малышева\""]
[38,340008,"Муниципальное бюджетное общеобразовательное учреждение \"Габишевская средняя общеобразовательная школа имени Махмута Ахметовича Гареева\" Лаишевского муниципального района Республики Татарстан","Шабаев","Даниял","М","нет",11,11,78,null,null,100,null,"нет","Козлова Наталья Викторовна","Муниципальное бюджетное общеобразовательное учреждение \"Габишевская средняя общеобразовательная школа имени Махмута Ахметовича Гареева\" Лаишевского муниципального района Республики Татарстан"]
[39,340008,"Муниципальное бюджетное общеобразовательное учреждение \"Габишевская средняя общеобразовательная школа имени Махмута Ахметовича Гареева\" Лаишевского муниципального района Республики Татарстан","Загидуллин","Аяз","М","нет",11,11,49,null,null,100,null,"нет","Козлова Наталья Викторовна","Муниципальное бюджетное общеобразовательное учреждение \"Габишевская средняя общеобразовательная школа имени Махмута Ахметовича Гареева\" Лаишевского муниципального района Республики Татарстан"]